fUSD/lending_fUSD_20251112
["ID","MTS","AMOUNT","RATE_DAILY","PERIOD"]
[393760717,1762967455818,-500.0,0.00040446,20]
[393760718,1762967455827,-500.0,0.00040446,20]
[393760719,1762967455837,-500.0,0.00040446,20]
[393760720,1762967455848,-500.0,0.00040446,20]
[393760721,1762967455859,-500.0,0.00040446,20]
[393760722,1762967455868,-528.4,0.00040446,20]
[393760723,1762967455878,-170.808803,0.00040447,120]
[393760724,1762967455887,-157.160354,0.00040447,120]
[393760725,1762967455896,-151.135937,0.00040447,120]
[393760726,1762967455906,-151.0,0.00040447,120]
[393760727,1762967455915,-179.037346,0.00040447,120]
[393760728,1762967455924,-156.397523,0.00040447,120]
[393760729,1762967455934,-159.587371,0.00040447,30]
[393760730,1762967455943,-189.101147,0.00040447,120]
[393760731,1762967455952,-151.0,0.00040447,120]
[393760732,1762967455962,-151.0,0.00040447,120]
[393760733,1762967455971,-151.0,0.00040447,120]
[393760734,1762967455981,-151.0,0.00040447,120]
[393760735,1762967455991,-151.0,0.00040447,120]
[393760736,1762967456001,-152.294396,0.00040447,120]
[393760737,1762967456010,-151.0,0.00040447,120]
[393760738,1762967456020,-151.0,0.00040447,120]
[393760739,1762967456029,-151.0,0.00040447,120]
[393760740,1762967456039,-151.0,0.00040447,120]
[393760741,1762967456049,-151.0,0.00040447,120]
[393760742,1762967456058,-151.0,0.00040447,120]
[393760743,1762967456067,-155.601954,0.00040447,120]
[393760744,1762967456077,-154.011465,0.00040447,90]
[393760745,1762967456087,-151.0,0.00040447,120]
[393760746,1762967456096,-151.0,0.00040447,120]
[393760747,1762967456105,-151.0,0.00040447,120]
[393760748,1762967456115,-151.0,0.00040447,120]
[393760749,1762967456124,-186.372097,0.00040447,120]
[393760750,1762967456133,-151.0,0.00040447,120]
[393760751,1762967456143,-151.0,0.00040447,120]
[393760752,1762967456151,-151.0,0.00040447,120]
[393760753,1762967456161,-151.0,0.00040447,120]
[393760754,1762967456170,-151.0,0.00040447,120]
[393760755,1762967456179,-151.0,0.00040447,120]
[393760756,1762967456188,-151.0,0.00040447,120]
[393760757,1762967456198,-151.0,0.00040447,120]
[393760758,1762967456208,-154.014904,0.00040447,120]
[393760759,1762967456217,-151.0,0.00040447,120]
[393760760,1762967456227,-151.0,0.00040447,120]
[393760761,1762967456237,-153.101118,0.00040447,120]
[393760762,1762967456247,-151.0,0.00040447,120]
[393760763,1762967456256,-157.763248,0.00040447,120]
[393760764,1762967456266,-151.0,0.00040447,120]
[393760765,1762967456276,-153.938725,0.00040447,120]
[393760766,1762967456287,-151.0,0.00040447,120]
[393760767,1762967456296,-154.26487,0.00040447,120]
[393760768,1762967456305,-500.0,0.00040447,20]
[393760769,1762967456315,-500.0,0.00040447,20]
[393760770,1762967456324,-500.0,0.00040447,20]
[393760771,1762967456335,-500.0,0.00040447,20]
[393760772,1762967456344,-460.15239049,0.00040447,20]
[393760773,1762967456353,-500.0,0.00040447,20]
[393760774,1762967456363,-500.0,0.00040447,20]
[393760775,1762967456373,-500.0,0.00040447,20]
[393760776,1762967456383,-500.0,0.00040447,20]
[393760777,1762967456392,-500.0,0.00040447,20]
[393760778,1762967456401,-151.0,0.00040447,120]
[393760779,1762967456411,-355.5505403,0.00040447,20]
[393760780,1762967456420,-151.0,0.00040447,120]
[393760781,1762967456429,-151.0,0.00040447,120]
[393760782,1762967456439,-151.0,0.00040447,120]
[393760783,1762967456448,-151.0,0.00040447,120]
[393760784,1762967456457,-151.0,0.00040447,120]
[393760785,1762967456467,-151.0,0.00040447,120]
[393760786,1762967456477,-500.0,0.00040447,20]
[393760787,1762967456487,-500.0,0.00040447,20]
[393760788,1762967456498,-151.0,0.00040447,120]
[393760789,1762967456514,-500.0,0.00040447,20]
[393760790,1762967456524,-500.0,0.00040447,20]
[393760791,1762967456536,-500.0,0.00040447,20]
[393760792,1762967456547,-151.0,0.00040447,120]
[393760793,1762967456558,-500.0,0.00040447,20]
[393760794,1762967456569,-151.0,0.00040447,120]
[393760795,1762967456580,-500.0,0.00040447,20]
[393760796,1762967456597,-151.0,0.00040447,120]
[393760797,1762967456608,-500.0,0.00040447,20]
[393760798,1762967456619,-500.0,0.00040447,20]
[393760799,1762967456630,-151.0,0.00040447,120]
[393760800,1762967456641,-500.0,0.00040447,20]
[393760801,1762967456651,-500.0,0.00040447,20]
[393760802,1762967456662,-500.0,0.00040447,20]
[393760803,1762967456672,-500.0,0.00040447,20]
[393760804,1762967456682,-304.26024771,0.00040447,20]
[393760805,1762967456692,-151.0,0.00040447,120]
[393760806,1762967456705,-151.0,0.00040447,120]
[393760807,1762967456715,-151.0,0.00040447,120]
[393760808,1762967456725,-151.0,0.00040447,120]
[393760809,1762967456735,-208.033725,0.00040447,120]
[393760810,1762967456746,-500.0,0.00040447,20]
[393760811,1762967456755,-500.0,0.00040447,20]
[393760812,1762967456765,-461.77897433,0.00040447,20]
[393760813,1762967456780,-508.42,0.00040447,20]
[393760814,1762967456790,-508.42,0.00040447,20]
[393760815,1762967456800,-508.42,0.00040447,20]
[393760816,1762967456810,-508.42,0.00040447,20]
[393760817,1762967456821,-508.42,0.00040447,20]
[393760818,1762967456943,-508.42,0.00040447,20]
[393760819,1762967456953,-508.42,0.00040447,20]
[393760820,1762967456962,-508.42,0.00040447,20]
[393760821,1762967456972,-508.42,0.00040447,20]
[393760822,1762967456981,-508.42,0.00040447,20]
[393760823,1762967456991,-508.42,0.00040447,20]
[393760824,1762967457000,-508.42,0.00040447,20]
[393760825,1762967457010,-508.42,0.00040447,20]
[393760826,1762967457019,-508.42,0.00040447,20]
[393760827,1762967457028,-508.42,0.00040447,20]
[393760828,1762967457037,-508.50180969,0.00040447,20]
[393760829,1762967457047,-500.0,0.00040447,20]
[393760830,1762967457056,-500.0,0.00040447,20]
[393760831,1762967457065,-298.02760828,0.00040447,20]
[393760832,1762967457074,-740.37,0.00040447,20]
[393760833,1762967457084,-740.37,0.00040447,20]
[393760834,1762967457093,-740.37,0.00040447,20]
[393760835,1762967457103,-740.37,0.00040447,20]
[393760836,1762967457113,-740.37,0.00040447,20]
[393760837,1762967457123,-740.37,0.00040447,20]
[393760838,1762967457133,-740.37,0.00040447,20]
[393760839,1762967457143,-740.37,0.00040447,20]
[393760840,1762967457152,-740.37,0.00040447,20]
[393760841,1762967457162,-740.37,0.00040447,20]
[393760842,1762967457172,-740.37,0.00040447,20]
[393760843,1762967457182,-740.37,0.00040447,20]
[393760844,1762967457192,-740.37,0.00040447,20]
[393760845,1762967457201,-740.37,0.00040447,20]
[393760846,1762967457211,-740.37,0.00040447,20]
[393760847,1762967457221,-740.58869486,0.00040447,20]
[393760848,1762967457230,-500.0,0.00040447,20]
[393760849,1762967457240,-209.46985516,0.00040447,20]
[393760850,1762967457250,-500.0,0.00040447,20]
[393760851,1762967457259,-500.0,0.00040447,20]
[393760852,1762967457268,-500.0,0.00040447,20]
[393760853,1762967457278,-500.0,0.00040447,20]
[393760854,1762967457287,-500.0,0.00040447,20]
[393760855,1762967457297,-500.0,0.00040447,20]
[393760856,1762967457306,-500.0,0.00040447,20]
[393760857,1762967457316,-178.27572125,0.00040447,20]
[393760858,1762967457325,-59816.28704156,0.00040447,29]
[393760859,1762967457336,-2418767.976255,0.00040448,7]
[393760860,1762967457593,-151.0,0.00040263,2]
[393760861,1762967457603,-231.31807638,0.00040263,2]
[393760862,1762967457614,-500.0,0.00040273,20]
[393760863,1762967457624,-500.0,0.00040273,20]
[393760864,1762967457634,-197.75414764,0.00040348,2]
[393760865,1762967457643,-12583.59653406,0.00040448,7]
[393760866,1762967457655,-2948.81268108,0.00040448,7]
[393760867,1762967457666,-695.24743659,0.00040448,7]
[393760868,1762967457677,-501.94320165,0.00040448,7]
[393760869,1762967457689,-47588.75932493,0.00040448,7]
[393760870,1762967457699,-70042.72499422,0.00040448,7]
[393760871,1762967457711,-102753.13215376,0.00040448,7]
[393760872,1762967457721,-450436.0,0.00040448,7]
[393760873,1762967457732,-1087453.03051813,0.00040448,7]
[393760874,1762967457747,-205305.8120842,0.00040448,7]
[393760875,1762967457758,-865.13590181,0.00040448,7]
[393760876,1762967457770,-5600796.63388141,0.00040448,7]
[393760877,1762967457782,-2451.04796929,0.00040448,7]
[393760878,1762967457794,-360.42425931,0.00040448,7]
[393760879,1762967457891,-500.0,0.00040273,20]
[393760880,1762967457900,-573546.97813534,0.00040448,7]
[393760881,1762967457932,-56.24309638,0.00040448,7]
[393760882,1762967457943,-17052.72775998,0.00040448,7]
[393760883,1762967457954,-467.5619357,0.00040448,7]
[393760884,1762967457966,-872.26117996,0.00040448,7]
[393760885,1762967457978,-494.14840717,0.00040448,7]
[393760886,1762967458016,-150.455,0.00037809,2]
[393760887,1762967458026,-151.0,0.00039675,2]
[393760888,1762967458035,-87.15522709,0.00040448,7]
[393760889,1762967458046,-902.496575,0.00040448,7]
[393760890,1762967458056,-10891.64815684,0.00040448,7]
[393760891,1762967458067,-15941.64894063,0.00040448,7]
[393760892,1762967458081,-1218.6,0.00040448,7]
[393760893,1762967458095,-372674.36498231,0.00040448,7]
[393760894,1762967458106,-6714.98335691,0.00040448,7]
[393760895,1762967458117,-1059.9,0.00040448,7]
[393760896,1762967458129,-10776.9347374,0.00040448,7]
[393760897,1762967458141,-387.5,0.00040448,7]
[393760898,1762967458152,-339.2552879,0.00040448,7]
[393760899,1762967458163,-371.59182033,0.00040448,7]
[393760900,1762967458175,-18808.56450007,0.00040448,7]
[393760901,1762967458188,-288.89118015,0.00040448,7]
[393760902,1762967461668,200.0,0.00040448,30]
[393760907,1762967763118,200.0,0.00040448,30]
[393760908,1762967773982,500.0,0.00040448,30]
[393760909,1762967774567,500.0,0.00040448,30]
[393760910,1762967775066,500.0,0.00040448,30]
[393760911,1762967775570,500.0,0.00040448,30]
[393760912,1762967776070,500.0,0.00040448,30]
[393760913,1762967776546,597.58269231,0.00040448,30]
[393760915,1762967894815,250.0,0.00017,2]
[393760916,1762968060819,200.0,0.00040449,30]
[393760917,1762968099879,-222.47297203,0.00019,2]
[393760919,1762968308656,101232.95784242,0.00018,2]
[393760920,1762968308689,4511801.87104988,0.00018,2]
[393760921,1762968319488,-77.52702797,0.00019,2]
[393760922,1762968320139,6875.16930894,9e-05,2]
[393760923,1762968321632,-236.3874397,0.00019535,2]
[393760927,1762968361721,200.0,0.00040449,30]
[393760928,1762968365954,-3922.470923,0.00019437,2]
[393760929,1762968365986,-13.6125603,0.00019535,2]
[393760932,1762968414729,2127.8430334,0.000162,5]
[393760933,1762968414751,414.1569666,0.000162,5]
[393760937,1762968442042,884.5337861,0.00018,2]
[393760939,1762968459415,605.17,0.00040449,30]
[393760940,1762968460406,-395.71042134,0.000199,3]
[393760941,1762968462166,-297.96515879,0.000199,3]
[393760942,1762968468931,8701.3192473,0.00018,2]
[393760943,1762968468955,10000.01,0.00018,2]
[393760944,1762968468977,10000.01,0.00018,2]
[393760945,1762968469000,10000.01,0.00018,2]
[393760946,1762968469021,10000.01,0.00018,2]
[393760947,1762968469044,10000.01,0.00018,2]
[393760948,1762968469066,10000.01,0.00018,2]
[393760949,1762968469089,10000.01,0.00018,2]
[393760950,1762968469112,10000.01,0.00018,2]
[393760951,1762968469139,10000.01,0.00018,2]
[393760952,1762968469165,41573.27087182,0.00018,2]
[393760953,1762968472726,435055.69944564,0.00015,2]
[393760954,1762968472754,1552.0,0.00015,2]
[393760955,1762968472779,50000.0,0.00015,2]
[393760956,1762968472800,50000.0,0.00015,2]
[393760957,1762968474489,-271.48907211,0.00015,2]
[393760958,1762968476680,-241.86447591,0.00015,2]
[393760959,1762968477531,-996.99765766,0.00015,2]
[393760960,1762968477651,-10000.01,0.00015,2]
[393760961,1762968477773,-10000.01,0.00015,2]
[393760962,1762968477908,-10000.01,0.00015,2]
[393760963,1762968478109,-10000.01,0.00015,2]
[393760964,1762968478275,-10000.01,0.00015,2]
[393760965,1762968478515,-10000.01,0.00015,2]
[393760966,1762968478605,-281.72354051,0.00015,2]
[393760967,1762968478644,-10000.01,0.00015,2]
[393760968,1762968478772,-10000.01,0.00015,2]
[393760969,1762968478907,-10000.01,0.00015,2]
[393760970,1762968480741,-250.0,0.00015,2]
[393760971,1762968480906,-10000.01,0.00015,2]
[393760972,1762968482997,-195.0,0.00015,2]
[393760973,1762968484094,-10000.01,0.00015,2]
[393760974,1762968485076,-250.26707738,0.00015,2]
[393760976,1762968487145,1226.49049326,0.0001439,2]
[393760977,1762968487183,-10000.01,0.00015,2]
[393760978,1762968489425,-192.33303981,0.00015,2]
[393760979,1762968490043,247.56446448,0.000135,2]
[393760980,1762968490169,305.00593647,0.000125,2]
[393760981,1762968490374,-10000.01,0.00015,2]
[393760982,1762968491209,-162.60775548,0.00015,2]
[393760983,1762968493138,-259.77391893,0.00015,2]
[393760986,1762968497712,-246.75055417,0.00015,2]
[393760988,1762968500494,-293.33866842,0.00015,2]
[393760990,1762968502706,-203.24944583,0.00015,2]
[393760991,1762968504274,-313.46361941,0.00015,2]
[393760992,1762968505432,222.20627854,0.0001,2]
[393760994,1762968509019,-320.85638059,0.00015,2]
[393760995,1762968511036,-287.0233663,0.00015,2]
[393760998,1762968512603,-288.08448633,0.00014999,2]
[393761000,1762968514748,-211.91551367,0.00014999,2]
[393761001,1762968514771,-167.39776405,0.00014999,2]
[393761002,1762968516265,-46.12567159,0.00014999,2]
[393761003,1762968516287,-453.87432841,0.00014999,2]
[393761004,1762968517803,-146.35196888,0.00014999,2]
[393761005,1762968517828,-376.36777228,0.00014999,2]
[393761006,1762968517850,-69.48982961,0.00014999,2]
[393761007,1762968519381,1293.24319673,0.0001,2]
[393761008,1762968519801,-279.19354798,0.00014999,2]
[393761010,1762968522534,1995.29524689,0.00013699,2]
[393761012,1762968523544,-257.68869896,0.00014999,2]
[393761013,1762968526221,1189.52,0.00040449,30]
[393761014,1762968526733,-207.4135978,0.00014999,2]
[393761015,1762968528384,-284.18130677,0.00014999,2]
[393761016,1762968531486,-234.94227212,0.00014999,2]
[393761017,1762968533588,-158.64013925,0.00014999,2]
[393761018,1762968536550,-179.25242389,0.00014999,2]
[393761019,1762968536587,-2297.42886975,0.00014999,2]
[393761020,1762968536611,-500.0,0.00014999,2]
[393761021,1762968536639,-500.0,0.00014999,2]
[393761022,1762968536664,-500.0,0.00014999,2]
[393761023,1762968536687,-494.23682391,0.00014999,2]
[393761024,1762968536708,-734708.33430634,0.00015,2]
[393761025,1762968538517,-195.0,0.00015,2]
[393761026,1762968540249,-160.54,0.00015,2]
[393761027,1762968542362,-156.315875,0.00015,2]
[393761028,1762968544820,-191.17812775,0.00014999,2]
[393761029,1762968546447,-108.82187225,0.00014999,2]
[393761030,1762968546469,-88.96491691,0.00015,2]
[393761031,1762968548628,-300.0,0.00015,2]
[393761032,1762968551671,-217.92631296,0.000149,2]
[393761033,1762968553733,-1.22222917,0.000149,2]
[393761034,1762968553758,-354.0085948,0.00014999,2]
[393761035,1762968555801,-145.9914052,0.00014999,2]
[393761036,1762968555827,-102.07374473,0.00014999,2]
[393761037,1762968560089,-160.9951893,0.00014999,2]
[393761038,1762968561741,-151.0,0.00014999,2]
[393761039,1762968563889,-85.93106597,0.00014999,2]
[393761040,1762968563917,-82.48003592,0.00014999,2]
[393761041,1762968566133,-286.39198111,0.00014999,2]
[393761042,1762968566161,-500.0,0.00014999,2]
[393761043,1762968566183,-500.0,0.00014999,2]
[393761044,1762968566209,-504.06415376,0.00014999,2]
[393761045,1762968566233,-3301.82308557,0.00015,2]
[393761046,1762968568278,-377.65895858,0.00015,2]
[393761047,1762968569959,-155.56479245,0.00015,2]
[393761048,1762968571196,-748000.0,0.00015,2]
[393761049,1762968573405,-211.1456766,0.00015,2]
[393761050,1762968576622,-207.21520516,0.00015,2]
[393761051,1762968578247,-399.30186852,0.00015,2]
[393761052,1762968582740,-168.86324805,0.00014985,2]
[393761053,1762968584363,-451.47332162,0.00014985,2]
[393761054,1762968587028,-195.23,0.00014985,2]
[393761055,1762968588557,-218.29261088,0.00014985,2]
[393761056,1762968590098,-161.77260472,0.00014985,2]
[393761057,1762968590123,-500.0,0.00014999,2]
[393761058,1762968590154,-315.43094223,0.00014999,2]
[393761059,1762968590181,-155.56479245,0.00014999,2]
[393761060,1762968590206,-1111.01581403,0.00015,2]
[393761061,1762968592147,-272.90389243,0.00015,2]
[393761062,1762968594254,-500.70078242,0.00015,2]
[393761063,1762968597977,-399.30186852,0.00014999,2]
[393761064,1762968597997,-179600.69813148,0.00015,2]
[393761065,1762968598605,-181.18203032,0.00015,2]
[393761066,1762968601448,-263.81796968,0.00015,2]
[393761067,1762968603520,-288.6505413,0.00014999,2]
[393761068,1762968603543,-167.38049276,0.00014999,2]
[393761069,1762968605078,-195.0,0.00014973,2]
[393761070,1762968607304,-283.61244424,0.000149,2]
[393761071,1762968608875,-250.0,0.000149,2]
[393761072,1762968611541,-151.02248491,0.000149,2]
[393761073,1762968613081,-273.80475986,0.000149,2]
[393761074,1762968615487,-177.26703298,0.00014899,2]
[393761075,1762968615511,-24.23639027,0.000149,2]
[393761076,1762968618280,-273.66125096,0.000149,2]
[393761077,1762968621165,-92.47661136,0.000149,2]
[393761078,1762968621190,-195.0,0.00014936,2]
[393761079,1762968621212,-4.45979034,0.00014973,2]
[393761080,1762968621237,-8.07167932,0.00014973,2]
[393761081,1762968623383,-472.66879035,0.00014973,2]
[393761082,1762968629976,-21.12958544,0.00014973,2]
[393761083,1762968629999,-193.44787182,0.00014973,2]
[393761103,1762968631904,-217.8176856,0.00014973,2]
[393761106,1762968631914,-484.55066968,0.00014973,2]
[393761110,1762968631962,-15.44933032,0.00014973,2]
[393761111,1762968631972,-1164.42615201,0.0001499,2]
[393761112,1762968631981,-2596.71,0.0001499,2]
[393761113,1762968631991,-2596.71,0.0001499,2]
[393761114,1762968632001,-2596.71,0.0001499,2]
[393761115,1762968632010,-2596.71,0.0001499,2]
[393761116,1762968632021,-93.46519255,0.0001499,2]
[393761117,1762968632039,-2503.24480745,0.0001499,2]
[393761118,1762968632049,-7.61950724,0.00014999,2]
[393761119,1762968632058,-150.0,0.00014999,2]
[393761120,1762968632068,-1200.0,0.00014999,2]
[393761121,1762968632078,-300.0,0.00014999,2]
[393761122,1762968632087,-300.0,0.00014999,2]
[393761123,1762968632097,-300.0,0.00014999,2]
[393761124,1762968632106,-300.0,0.00014999,2]
[393761125,1762968632115,-500.0,0.00014999,2]
[393761126,1762968632125,-319.16306248,0.00014999,2]
[393761127,1762968632135,-500.0,0.00014999,2]
[393761128,1762968632144,-500.0,0.00014999,2]
[393761129,1762968632153,-500.0,0.00014999,2]
[393761130,1762968632163,-500.0,0.00014999,2]
[393761131,1762968632174,-500.0,0.00014999,2]
[393761132,1762968632185,-509.87852342,0.00014999,2]
[393761133,1762968632195,-500.0,0.00014999,2]
[393761134,1762968632205,-500.0,0.00014999,2]
[393761135,1762968632215,-500.0,0.00014999,2]
[393761136,1762968632224,-500.0,0.00014999,2]
[393761137,1762968632234,-500.0,0.00014999,2]
[393761138,1762968632243,-500.0,0.00014999,2]
[393761139,1762968632255,-500.0,0.00014999,2]
[393761140,1762968632264,-500.0,0.00014999,2]
[393761141,1762968632274,-500.0,0.00014999,2]
[393761142,1762968632284,-500.0,0.00014999,2]
[393761143,1762968632293,-500.0,0.00014999,2]
[393761144,1762968632302,-500.0,0.00014999,2]
[393761145,1762968632312,-85090.55740434,0.00015,2]
[393761146,1762968632323,-15366.24198424,0.00015,2]
[393761147,1762968632334,-9792.09769037,0.00015,2]
[393761148,1762968632345,-4171.73504545,0.00015,2]
[393761150,1762968632356,-3304.16149517,0.00015,2]
[393761152,1762968632367,-5378.53161582,0.00015,2]
[393761154,1762968632377,-44010.7815,0.00015,2]
[393761157,1762968632400,-6408.9376728,0.00015,2]
[393761159,1762968632411,-1374.67621664,0.00015,2]
[393761169,1762968633087,-449.18001025,0.00015,2]
[393761170,1762968635141,-299.90521247,0.00015,2]
[393761173,1762968637951,-24044.30623614,0.00014999,2]
[393761174,1762968637961,-58181.10031232,0.00015,2]
[393761175,1762968637972,-20726.55966546,0.00015,2]
[393761176,1762968638006,-499691.37002591,0.00015,2]
[393761177,1762968638084,-819.32587248,0.00015,2]
[393761178,1762968638096,-2186728.42960656,0.00015,2]
[393761179,1762968638106,-366425.59697892,0.00015,3]
[393761180,1762968638116,-385.7015762,0.00015,2]
[393761181,1762968638126,-1000.0,0.00015521,2]
[393761182,1762968638136,-1500.0,0.00016068,2]
[393761183,1762968638147,-255.0,0.00016124,2]
[393761184,1762968638167,-196.63003146,0.00016316,2]
[393761185,1762968638181,-2461.14248626,0.00016316,2]
[393761186,1762968638192,-195.0,0.0001639,2]
[393761187,1762968638203,-500.70078242,0.0001639,2]
[393761188,1762968638214,-420.0,0.00016416,2]
[393761189,1762968638224,-195.0,0.00016499,2]
[393761190,1762968638235,-1680.0,0.00016499,2]
[393761191,1762968638244,-250.0,0.000165,2]
[393761192,1762968638257,-250.0,0.0001655,2]
[393761193,1762968638266,-2000.0,0.00016616,2]
[393761194,1762968638278,-1348.81394157,0.0001716,2]
[393761195,1762968638288,-2601.55033419,0.00017164,2]
[393761196,1762968638299,-610.0,0.00017197,2]
[393761197,1762968638309,-433.0,0.00017339,2]
[393761198,1762968638318,-999.0,0.00017457,3]
[393761199,1762968638328,-587.0,0.00017966,2]
[393761200,1762968638338,-1180.05729249,0.00018,2]
[393761201,1762968638348,-1763.86152601,0.000181,2]
[393761202,1762968638358,-2351.0,0.00018149,2]
[393761203,1762968638369,-736.0,0.00018629,2]
[393761204,1762968638378,-150.73,0.000188,2]
[393761205,1762968638387,-150.73,0.000188,2]
[393761206,1762968638397,-500.0,0.00018888,2]
[393761207,1762968638407,-5123.66738988,0.00019,2]
[393761208,1762968638417,-354.74767821,0.0001901,7]
[393761209,1762968638428,-1348.81394157,0.00019419,2]
[393761210,1762968638438,-10660.79501882,0.000195,7]
[393761211,1762968638448,-823.0,0.00019663,2]
[393761212,1762968638459,-4184.15186014,0.000199,3]
[393761213,1762968638470,-3292.0,0.00019964,2]
[393761214,1762968638480,-500.0,0.00019973,2]
[393761215,1762968638491,-526.80625268,0.00019973,2]
[393761216,1762968638501,-500.0,0.00019973,2]
[393761217,1762968638512,-327.11811407,0.00019973,2]
[393761218,1762968638529,-218.87120248,0.00019973,2]
[393761219,1762968638539,-500.0,0.00019973,2]
[393761220,1762968638548,-500.0,0.00019973,2]
[393761221,1762968638558,-500.0,0.00019973,2]
[393761222,1762968638568,-500.0,0.00019973,2]
[393761223,1762968638578,-500.0,0.00019973,2]
[393761224,1762968638589,-500.0,0.00019973,2]
[393761225,1762968638598,-500.0,0.00019973,2]
[393761226,1762968638608,-200.0,0.00019973,2]
[393761227,1762968638619,-500.0,0.00019973,2]
[393761228,1762968638629,-500.0,0.00019973,2]
[393761229,1762968638639,-14364.07576899,0.0001999,2]
[393761230,1762968638649,-1164.42615201,0.0001999,2]
[393761231,1762968638659,-9801.3793367,0.0002,2]
[393761232,1762968638669,-1520.48570805,0.0002,2]
[393761233,1762968638679,-25378.61501655,0.0002,2]
[393761234,1762968638690,-270624.50900219,0.0002,5]
[393761235,1762968638701,-3950.0,0.0002,2]
[393761236,1762968638712,-272.90389243,0.0002,20]
[393761237,1762968638722,-2592.13590204,0.0002,14]
[393761238,1762968638733,-7229.73754223,0.0002,2]
[393761239,1762968638742,-1283.8815972,0.0002,2]
[393761240,1762968638752,-7314.71969025,0.0002,2]
[393761241,1762968638761,-2177.52624628,0.0002,3]
[393761242,1762968638771,-10170.36657004,0.0002,2]
[393761243,1762968638783,-1036.29685642,0.0002,2]
[393761244,1762968638799,-2839.88175406,0.0002,2]
[393761245,1762968638810,-8736.97727557,0.0002,2]
[393761246,1762968638821,-1000.0,0.0002,7]
[393761247,1762968638831,-9013.3643972,0.0002001,2]
[393761248,1762968638841,-511.0,0.00020024,2]
[393761249,1762968638852,-789.81,0.00020094,2]
[393761250,1762968638863,-302.417637,0.000205,2]
[393761251,1762968638874,-1000.0,0.00020521,2]
[393761252,1762968638884,-1000.0,0.00020521,2]
[393761253,1762968638894,-1002.15227908,0.00020521,2]
[393761254,1762968638908,-1000.0,0.00020521,2]
[393761255,1762968638919,-1000.0,0.00020521,2]
[393761256,1762968638929,-504.76484986,0.00020521,2]
[393761257,1762968638940,-1000.0,0.00020521,2]
[393761258,1762968638950,-657.1701375,0.00020521,2]
[393761259,1762968638960,-1000.0,0.00020521,2]
[393761260,1762968639198,-400.0,0.00020658,2]
[393761261,1762968639208,-22468.60835032,0.000207,2]
[393761262,1762968639223,-211.32,0.00020933,2]
[393761263,1762968639233,-13646.44312808,0.00021,2]
[393761264,1762968639242,-21231.35872598,0.00021,2]
[393761265,1762968639254,-1030.28940193,0.00021068,2]
[393761266,1762968639266,-1067.51135845,0.00021068,2]
[393761267,1762968639275,-1500.0,0.00021068,2]
[393761268,1762968639287,-1500.0,0.00021068,2]
[393761269,1762968639296,-1006.63000051,0.00021068,2]
[393761270,1762968639305,-1500.0,0.00021068,2]
[393761271,1762968639315,-789.81,0.00021111,2]
[393761272,1762968639324,-600.0,0.00021342,2]
[393761273,1762968639333,-250.0,0.00021488,2]
[393761274,1762968639342,-5179.55493699,0.000215,2]
[393761275,1762968639351,-1152.0,0.0002152,2]
[393761276,1762968639361,-503.66064638,0.00021616,2]
[393761277,1762968639371,-391.0031812,0.00021616,2]
[393761278,1762968639381,-1015.44652778,0.00021616,2]
[393761279,1762968639390,-1348.81394157,0.00021679,2]
[393761280,1762968639399,-4609.0,0.0002196,2]
[393761281,1762968639409,-905.38402433,0.00022027,2]
[393761282,1762968639418,-789.81,0.00022127,2]
[393761283,1762968639427,-11788.06,0.000222,7]